bitfinex-derivatives/quotes_BNBF0:USTF0_20250908
["timestamp","ask_amount","ask_price","bid_price","bid_amount"]
[1757311576934,0.65290397,870.39,868.46,0.19954929]
[1757311577133,0.65290397,870.38,868.46,0.19954929]
[1757311577335,1.01753821,870.46,868.46,0.19954929]
[1757311577535,0.65264815,870.45,868.46,0.19954929]
[1757311577734,0.65264815,870.44,868.46,0.19954929]
[1757311577941,0.65264815,870.43,868.46,0.19954929]
[1757311578138,0.65264815,870.42,868.46,0.19954929]
[1757311578438,0.65264815,870.41,868.46,0.19954929]
[1757311578636,0.65264815,870.4,868.46,0.19954929]
[1757311578836,0.65264815,870.39,868.46,0.19954929]
[1757311579135,0.65264815,870.38,868.46,0.19954929]
[1757311579339,1.01753821,870.44,868.46,0.19954929]
[1757311579538,0.6534829,870.43,868.46,0.19954929]
[1757311579735,0.6534829,870.42,868.46,0.19954929]
[1757311579935,1.67102111,870.41,868.46,0.19954929]
[1757311580138,0.6534829,870.4,868.46,0.19954929]
[1757311580338,0.6534829,870.39,868.46,0.19954929]
[1757311580538,1.01753821,870.42,868.46,0.19954929]
[1757311580837,0.65342107,870.41,868.46,0.19954929]
[1757311581136,1.01753821,870.39,868.46,0.19954929]
[1757311581938,1.01753821,870.4,868.46,0.19954929]
[1757311582238,0.65333187,870.39,868.46,0.19954929]
[1757311582539,1.01753821,870.4,868.46,0.19954929]
[1757311582838,0.65325383,870.39,868.46,0.19954929]
[1757311583035,1.01753821,870.39,868.46,0.19954929]
[1757311583335,0.65317968,870.38,868.46,0.19954929]
[1757311583538,1.01753821,870.39,868.46,0.19954929]
[1757311584136,0.65317898,870.38,868.46,0.19954929]
[1757311584339,1.01753821,870.38,868.46,0.19954929]
[1757311585040,1.01753821,870.44,868.46,0.19954929]
[1757311585236,0.65311035,870.43,868.46,0.19954929]
[1757311585439,0.65311035,870.42,868.46,0.19954929]
[1757311585638,0.65311035,870.41,868.46,0.19954929]
[1757311585842,0.65311035,870.4,868.46,0.19954929]
[1757311586041,0.65311035,870.39,868.46,0.19954929]
[1757311586341,0.65311035,870.38,868.46,0.19954929]
[1757311586541,0.65311035,870.37,868.46,0.19954929]
[1757311586738,1.01753821,870.34,868.46,0.19954929]
[1757311586942,0.65311035,870.33,868.46,0.19954929]
[1757311587142,0.65311035,870.32,868.46,0.19954929]
[1757311587340,0.65311035,870.31,868.46,0.19954929]
[1757311587544,0.65311035,870.3,868.46,0.19954929]
[1757311587840,0.65311035,870.29,868.46,0.19954929]
[1757311588044,0.65311035,870.28,868.46,0.19954929]
[1757311588345,0.6527329,870.27,868.46,0.19954929]
[1757311588645,0.6527329,870.26,868.46,0.19954929]
[1757311588941,1.01753821,870.31,868.46,0.19954929]
[1757311589145,1.67027128,870.3,868.46,0.19954929]
[1757311589344,0.65273307,870.29,868.46,0.19954929]
[1757311589542,0.65273307,870.28,868.46,0.19954929]
[1757311589741,0.65273307,870.27,868.46,0.19954929]
[1757311589945,0.65273307,870.26,868.46,0.19954929]
[1757311590148,0.65273307,870.25,868.46,0.19954929]
[1757311590342,1.01753821,870.3,868.46,0.19954929]
[1757311590545,0.65257144,870.29,868.46,0.19954929]
[1757311590845,0.65257144,870.28,868.46,0.19954929]
[1757311591145,0.65257144,870.27,868.46,0.19954929]
[1757311591442,0.65257144,870.26,868.46,0.19954929]
[1757311591645,0.65257144,870.25,868.46,0.19954929]
[1757311591844,1.01753821,870.29,868.46,0.19954929]
[1757311592045,0.65252837,870.28,868.46,0.19954929]
[1757311592245,0.65252837,870.27,868.46,0.19954929]
[1757311592445,0.65252837,870.26,868.46,0.19954929]
[1757311592745,0.65252837,870.25,868.46,0.19954929]
[1757311593047,1.01753821,870.29,868.46,0.19954929]
[1757311593347,0.65248603,870.28,868.46,0.19954929]
[1757311593646,1.01753821,870.29,868.46,0.19954929]
[1757311593647,0.65248603,870.27,868.46,0.19954929]
[1757311593847,0.65248603,870.26,868.46,0.19954929]
[1757311594044,0.65248603,870.25,868.46,0.19954929]
[1757311594246,1.01753821,870.29,868.46,0.19954929]
[1757311594446,0.65239388,870.28,868.46,0.19954929]
[1757311594644,0.65239388,870.27,868.46,0.19954929]
[1757311594944,1.01753821,870.25,868.46,0.19954929]
[1757311596849,1.01753821,870.25,867.85,2.55668925]
[1757311597149,1.01753821,870.25,868.63,0.19974343]
[1757311597347,1.01753821,870.25,867.84,2.55668925]
[1757311597547,1.01753821,870.25,868.44,0.19973655]
[1757311600956,1.01753821,870.29,868.44,0.19973655]
[1757311601154,3.53327199,871.22,868.44,0.19973655]
[1757311601155,1.01753821,870.21,868.44,0.19973655]
[1757311601355,0.65229395,870.2,868.44,0.19973655]
[1757311601556,0.65229395,870.19,868.44,0.19973655]
[1757311601855,0.65229395,870.18,868.44,0.19973655]
[1757311602052,0.65229395,870.17,868.44,0.19973655]
[1757311602256,0.65229395,870.16,868.44,0.19973655]
[1757311602458,0.65229395,870.15,868.44,0.19973655]
[1757311602656,0.65229395,870.14,868.44,0.19973655]
[1757311602955,0.65229395,870.13,868.44,0.19973655]
[1757311603156,1.01753821,870.22,868.44,0.19973655]
[1757311603358,1.01753821,870.19,868.44,0.19973655]
[1757311603558,1.01753821,870.16,868.44,0.19973655]
[1757311603758,0.65230391,870.15,868.44,0.19973655]
[1757311604059,0.65230391,870.14,868.44,0.19973655]
[1757311604257,0.65230391,870.13,868.44,0.19973655]
[1757311604461,0.65230391,870.12,868.44,0.19973655]
[1757311604660,0.65230391,870.11,868.44,0.19973655]
[1757311604960,0.65230391,870.1,868.44,0.19973655]
[1757311605259,1.01753821,870.06,868.44,0.19973655]
[1757311605453,1.01753821,870.03,868.44,0.19973655]
[1757311605655,0.65230391,870.02,868.44,0.19973655]
[1757311605859,1.01753821,870.0,868.44,0.19973655]
[1757311606155,1.66984212,869.99,868.44,0.19973655]
[1757311606356,1.01753821,869.94,868.44,0.19973655]
[1757311608164,0.81772539,869.95,867.34,2.55668925]
[1757311608558,1.52522373,870.2,867.35,2.55668925]
[1757311608758,0.65036852,870.19,867.35,2.55668925]
[1757311608962,0.65036852,870.18,867.25,2.55668925]
[1757311609160,0.65036852,870.17,867.25,2.55668925]
[1757311609463,0.65036852,870.16,867.2,2.55668925]
[1757311609758,0.65036852,870.15,867.2,2.55668925]
[1757311609957,0.65036852,870.14,867.2,2.55668925]
[1757311610160,0.65036852,870.13,867.2,2.55668925]
[1757311610462,0.65036852,870.12,867.2,2.55668925]
[1757311610662,0.65036852,870.11,867.25,2.55668925]
[1757311610859,0.65036852,870.1,867.25,2.55668925]
[1757311611064,0.65036852,870.09,867.92,0.19980995]
[1757311611363,0.65036852,870.08,867.92,0.19980995]
[1757311611561,0.65036852,870.07,867.92,0.19980995]
[1757311611763,0.65036852,870.06,867.92,0.19980995]
[1757311612064,0.65036852,870.05,867.92,0.19980995]
[1757311612261,0.65036852,870.04,867.92,0.19980995]
[1757311612466,0.65036852,870.03,867.92,0.19980995]
[1757311612765,0.65036852,870.02,867.92,0.19980995]
[1757311613066,0.65036852,870.01,867.92,0.19980995]
[1757311613266,0.65036852,870.0,867.92,0.19980995]
[1757311613462,0.65036852,869.99,867.92,0.19980995]
[1757311613661,0.65036852,869.98,867.92,0.19980995]
[1757311613968,1.52522373,870.31,867.92,0.19980995]
[1757311614168,0.65059965,870.3,867.92,0.19980995]
[1757311614368,2.53744394,871.2,867.92,0.19980995]
[1757311614369,0.65059965,870.29,867.92,0.19980995]
[1757311614567,0.65059965,870.28,867.92,0.19980995]
[1757311614765,0.65059965,870.27,867.92,0.19980995]
[1757311615066,1.52522373,870.12,867.92,0.19980995]
[1757311615266,1.52522373,869.99,867.92,0.19980995]
[1757311615465,1.52522373,869.93,867.92,0.19980995]
[1757311615668,0.65059965,869.92,867.92,0.19980995]
[1757311615866,0.65059965,869.91,867.92,0.19980995]
[1757311616067,0.65059965,869.9,867.92,0.19980995]
[1757311616266,0.65059965,869.89,867.92,0.19980995]
[1757311616469,2.53744394,870.89,867.92,0.19980995]
[1757311616470,0.65059965,869.88,867.92,0.19980995]
[1757311616668,1.32538452,870.23,867.03,2.55668925]
[1757311616866,0.65046645,870.22,867.03,2.55668925]
[1757311617070,0.65046645,870.21,867.43,2.55668925]
[1757311617266,0.65046645,870.2,867.43,2.55668925]
[1757311617468,0.65046645,870.19,867.43,2.55668925]
[1757311617668,0.65046645,870.18,867.44,2.55668925]
[1757311617867,0.65046645,870.17,867.44,2.55668925]
[1757311618068,0.65046645,870.16,867.46,2.55668925]
[1757311618271,0.65046645,870.15,867.46,2.55668925]
[1757311618571,0.65046645,870.14,867.47,2.55668925]
[1757311618771,0.65046645,870.13,867.47,2.55668925]
[1757311619069,0.65046645,870.12,867.46,2.55668925]
[1757311619268,0.65046645,870.11,867.46,2.55668925]
[1757311619467,0.65046645,870.1,867.46,2.55668925]
[1757311619768,0.65046645,870.09,868.0,0.19979561]
[1757311619967,0.65046645,870.08,868.0,0.19979561]
[1757311620172,0.65046645,870.07,868.0,0.19979561]
[1757311620471,0.65046645,870.06,868.0,0.19979561]
[1757311620772,0.65046645,870.05,868.0,0.19979561]
[1757311620971,0.65046645,870.04,868.0,0.19979561]
[1757311621173,0.65046645,870.03,868.0,0.19979561]
[1757311621370,0.65046645,870.02,868.0,0.19979561]
[1757311621573,0.65046645,870.01,868.0,0.19979561]
[1757311621869,0.65046645,870.0,868.0,0.19979561]
[1757311622074,0.65046645,869.99,868.0,0.19979561]
[1757311622271,0.65046645,869.98,868.0,0.19979561]
[1757311622472,2.53744394,871.04,868.0,0.19979561]
[1757311622671,0.64893094,871.03,868.0,0.19979561]
[1757311622869,0.64893094,871.02,868.0,0.19979561]
[1757311623171,0.64893094,871.01,868.0,0.19979561]
[1757311623376,0.64893094,871.0,868.0,0.19979561]
[1757311623576,2.53744394,870.7,868.0,0.19979561]
[1757311623777,0.64893094,870.69,868.0,0.19979561]
[1757311623972,0.64893094,870.68,868.0,0.19979561]
[1757311624172,0.64893094,870.67,868.0,0.19979561]
[1757311624470,0.64893094,870.66,868.0,0.19979561]
[1757311624675,0.64893094,870.65,868.0,0.19979561]
[1757311624873,0.64893094,870.64,868.0,0.19979561]
[1757311625077,2.53744394,870.8,868.0,0.19979561]
[1757311625078,0.64893094,870.63,868.0,0.19979561]
[1757311625277,0.64893094,870.62,868.0,0.19979561]
[1757311625573,0.64893094,870.61,868.0,0.19979561]
[1757311625778,0.64893094,870.6,868.0,0.19979561]
[1757311625977,0.64893094,870.59,868.0,0.19979561]
[1757311626273,0.64893094,870.58,868.0,0.19979561]
[1757311626476,0.64893094,870.57,868.0,0.19979561]
[1757311626772,0.64893094,870.56,868.0,0.19979561]
[1757311626972,0.64893094,870.55,868.0,0.19979561]
[1757311627176,0.64893094,870.54,868.0,0.19979561]
[1757311627376,0.64893094,870.53,868.0,0.19979561]
[1757311627575,0.64893094,870.52,868.0,0.19979561]
[1757311627776,0.64893094,870.51,868.0,0.19979561]
[1757311627977,0.64893094,870.5,868.0,0.19979561]
[1757311628175,0.64893094,870.49,868.0,0.19979561]
[1757311628478,0.64893094,870.48,868.0,0.19979561]
[1757311628676,0.64893094,870.47,868.0,0.19979561]
[1757311628975,0.64893094,870.46,868.0,0.19979561]
[1757311629276,0.64893094,870.45,868.0,0.19979561]
[1757311629476,0.64893094,870.44,868.0,0.19979561]
[1757311629678,0.64893094,870.43,868.0,0.19979561]
[1757311629878,0.64893094,870.42,868.0,0.19979561]
[1757311630077,0.64893094,870.41,868.0,0.19979561]
[1757311630279,0.64893094,870.4,868.0,0.19979561]
[1757311630476,0.64893094,870.39,868.0,0.19979561]
[1757311630680,0.64893094,870.38,868.0,0.19979561]
[1757311630880,0.64893094,870.37,868.0,0.19979561]
[1757311631083,0.64893094,870.36,868.0,0.19979561]
[1757311631381,0.64893094,870.35,868.0,0.19979561]
[1757311631579,0.64893094,870.34,868.0,0.19979561]
[1757311631782,0.64893094,870.33,868.0,0.19979561]
[1757311631978,0.64893094,870.32,868.0,0.19979561]
[1757311632280,0.64893094,870.31,868.0,0.19979561]
[1757311632478,0.64893094,870.3,868.0,0.19979561]
[1757311632678,0.64893094,870.29,868.0,0.19979561]
[1757311632879,0.64893094,870.28,868.0,0.19979561]
[1757311633082,0.64893094,870.27,868.0,0.19979561]
[1757311633282,0.64893094,870.26,868.0,0.19979561]
[1757311633579,0.64893094,870.25,868.0,0.19979561]
[1757311633782,0.64893094,870.24,868.0,0.19979561]
[1757311633980,0.64893094,870.23,868.0,0.19979561]
[1757311634179,0.64893094,870.22,868.0,0.19979561]
[1757311634381,0.64893094,870.21,868.0,0.19979561]
[1757311634582,0.64893094,870.2,868.0,0.19979561]
[1757311634782,0.64893094,870.19,868.0,0.19979561]
[1757311634979,0.64893094,870.18,868.0,0.19979561]
[1757311635178,0.64893094,870.17,868.0,0.19979561]
[1757311635378,0.64893094,870.16,868.0,0.19979561]
[1757311635579,0.64893094,870.15,868.0,0.19979561]
[1757311635778,0.64893094,870.14,868.0,0.19979561]
[1757311635983,0.64893094,870.13,868.0,0.19979561]
[1757311636182,0.64893094,870.12,868.0,0.19979561]
[1757311636483,0.64893094,870.11,868.0,0.19979561]
[1757311636682,0.64893094,870.1,868.0,0.19979561]
[1757311636885,0.64893094,870.09,868.0,0.19979561]
[1757311637185,0.64893094,870.08,868.0,0.19979561]
[1757311637480,0.64893094,870.07,868.0,0.19979561]
[1757311637682,0.64893094,870.06,868.0,0.19979561]
[1757311637983,0.64893094,870.05,868.0,0.19979561]
[1757311638183,1.01407653,869.95,868.0,0.19979561]
[1757311638382,1.66300747,869.94,868.0,0.19979561]
[1757311638580,1.66300747,869.93,868.0,0.19979561]
[1757311638795,0.64893094,869.92,868.0,0.19979561]
[1757311638986,0.64893094,869.91,868.0,0.19979561]
[1757311639185,0.64893094,869.9,868.0,0.19979561]
[1757311639384,0.64893094,869.89,868.0,0.19979561]
[1757311639582,0.64893094,869.88,868.0,0.19979561]
[1757311639781,0.64893094,869.87,868.0,0.19979561]
[1757311639986,0.64893094,869.86,868.0,0.19979561]
[1757311640182,0.64893094,869.85,868.0,0.19979561]
[1757311640486,0.64893094,869.84,868.0,0.19979561]
[1757311640787,0.64893094,869.83,868.0,0.19979561]
[1757311640985,0.64893094,869.82,868.0,0.19979561]
[1757311641185,0.64984566,869.81,868.0,0.19979561]
[1757311641486,0.64984566,869.8,868.0,0.19979561]
[1757311641686,0.64984566,869.79,868.0,0.19979561]
[1757311641883,0.64984566,869.78,868.0,0.19979561]
[1757311642084,1.01407653,869.81,868.0,0.19979561]
[1757311642286,0.64987398,869.8,868.0,0.19979561]
[1757311642483,0.64987398,869.79,868.0,0.19979561]
[1757311642687,0.64987398,869.78,868.0,0.19979561]
[1757311642888,1.01407653,869.87,868.0,0.19979561]
[1757311643086,0.64991608,869.86,868.0,0.19979561]
[1757311643289,0.64991608,869.85,868.0,0.19979561]
[1757311643591,0.64991608,869.84,868.0,0.19979561]
[1757311643885,0.64991608,869.83,868.0,0.19979561]
[1757311644090,0.64991608,869.82,868.0,0.19979561]
[1757311644389,0.64991608,869.81,868.0,0.19979561]
[1757311644589,1.01407653,870.04,868.0,0.19979561]
[1757311644789,0.65012361,870.03,868.0,0.19979561]
[1757311645089,0.65012361,870.02,868.0,0.19979561]
[1757311645287,0.65012361,870.01,868.0,0.19979561]
[1757311645490,0.65012361,870.0,868.0,0.19979561]
[1757311645690,0.65012361,869.99,868.0,0.19979561]
[1757311645891,1.01407653,870.45,868.0,0.19979561]
[1757311646186,0.65041154,870.44,868.0,0.19979561]
[1757311646390,0.65041154,870.43,868.0,0.19979561]
[1757311646687,0.65041154,870.42,868.0,0.19979561]
[1757311646987,1.01407653,870.49,868.0,0.19979561]
[1757311646988,0.65041154,870.41,868.0,0.19979561]
[1757311647190,0.65041154,870.4,868.0,0.19979561]
[1757311647487,0.65041154,870.39,868.0,0.19979561]
[1757311647687,0.65041154,870.38,868.0,0.19979561]
[1757311647887,0.65041154,870.37,868.0,0.19979561]
[1757311648090,0.65041154,870.36,868.0,0.19979561]
[1757311648288,0.65041154,870.35,868.0,0.19979561]
[1757311648487,0.65041154,870.34,868.0,0.19979561]
[1757311648691,0.65041154,870.33,868.0,0.19979561]
[1757311648891,0.65041154,870.32,868.0,0.19979561]
[1757311649092,0.65041154,870.31,868.0,0.19979561]
[1757311649293,0.65041154,870.3,868.0,0.19979561]
[1757311649493,0.65041154,870.29,868.0,0.19979561]
[1757311649692,0.65041154,870.28,868.0,0.19979561]
[1757311649890,0.65041154,870.27,868.0,0.19979561]
[1757311650193,0.65041154,870.26,868.0,0.19979561]
[1757311650392,0.65041154,870.25,868.0,0.19979561]
[1757311650593,0.65041154,870.24,868.0,0.19979561]
[1757311650789,0.65041154,870.23,868.0,0.19979561]
[1757311651089,0.65041154,870.22,868.0,0.19979561]
[1757311651292,0.65041154,870.21,868.0,0.19979561]
[1757311651492,0.65041154,870.2,868.0,0.19979561]
[1757311651690,0.65041154,870.19,868.0,0.19979561]
[1757311651892,0.65041154,870.18,868.0,0.19979561]
[1757311652090,0.65041154,870.17,868.0,0.19979561]
[1757311652290,0.65041154,870.16,868.0,0.19979561]
[1757311652489,0.65041154,870.15,868.0,0.19979561]
[1757311652690,0.65041154,870.14,868.0,0.19979561]
[1757311652889,0.65041154,870.13,868.0,0.19979561]
[1757311653093,0.65041154,870.12,868.0,0.19979561]
[1757311653293,0.65041154,870.11,868.0,0.19979561]
[1757311653593,0.65041154,870.1,868.0,0.19979561]
[1757311653891,0.65041154,870.09,868.0,0.19979561]
[1757311654091,0.65041154,870.08,868.0,0.19979561]
[1757311654290,0.65041154,870.07,868.0,0.19979561]
[1757311654493,0.65041154,870.06,868.0,0.19979561]
[1757311654694,0.65041154,870.05,868.0,0.19979561]
[1757311654895,0.65041154,870.04,868.0,0.19979561]
[1757311655190,0.65041154,870.03,868.0,0.19979561]
[1757311655394,1.01407653,870.09,868.0,0.19979561]
[1757311655395,0.65041154,870.02,868.0,0.19979561]
[1757311655594,0.65041154,870.01,868.0,0.19979561]
[1757311655792,0.65041154,870.0,868.0,0.19979561]
[1757311656090,2.53744394,871.19,868.0,0.19979561]
[1757311656091,0.65041154,869.99,868.0,0.19979561]
[1757311656291,1.01407653,870.08,868.0,0.19979561]
[1757311656292,0.65041154,869.98,868.0,0.19979561]
[1757311656595,1.01407653,870.08,868.0,0.19979561]
[1757311656796,0.6513623,870.07,868.0,0.19979561]
[1757311657091,0.6513623,870.06,868.0,0.19979561]
[1757311657295,0.6513623,870.05,868.0,0.19979561]
[1757311657496,0.6513623,870.04,868.0,0.19979561]
[1757311657693,0.6513623,870.03,868.0,0.19979561]
[1757311657993,1.01407653,870.07,868.0,0.19979561]
[1757311657994,0.6513623,870.02,868.0,0.19979561]
[1757311658195,0.6513623,870.01,868.0,0.19979561]
[1757311658394,0.6513623,870.0,868.0,0.19979561]
[1757311658592,0.6513623,869.99,868.0,0.19979561]
[1757311658896,0.6513623,869.98,868.0,0.19979561]
[1757311659093,0.6513623,869.97,868.0,0.19979561]
[1757311659393,1.01407653,870.05,868.0,0.19979561]
[1757311659593,0.65177306,870.04,868.0,0.19979561]
[1757311659794,0.65177306,870.03,868.0,0.19979561]
[1757311659996,0.65177306,870.02,868.0,0.19979561]
[1757311660196,0.65177306,870.01,868.0,0.19979561]
[1757311660398,1.01407653,869.97,868.0,0.19979561]
[1757311660697,0.65177306,869.96,868.0,0.19979561]
[1757311660897,0.65177306,869.95,868.0,0.19979561]
[1757311661098,0.65177306,869.94,868.0,0.19979561]
[1757311661296,0.65177306,869.93,868.0,0.19979561]
[1757311661499,0.65177306,869.92,868.0,0.19979561]
[1757311661697,0.65177306,869.91,868.0,0.19979561]
[1757311662000,0.65177306,869.9,868.0,0.19979561]
[1757311662198,1.01407653,869.96,868.0,0.19979561]
[1757311662396,0.65204309,869.95,868.0,0.19979561]
[1757311662600,0.65204309,869.94,868.0,0.19979561]
[1757311662799,1.01407653,870.13,868.0,0.19979561]
[1757311662999,0.65207401,870.12,868.0,0.19979561]
[1757311663199,0.65207401,870.11,868.0,0.19979561]
[1757311663401,0.65207401,870.1,868.0,0.19979561]
[1757311663597,0.65207401,870.09,868.0,0.19979561]
[1757311663903,0.65207401,870.08,868.0,0.19979561]
[1757311664097,0.65207401,870.07,868.0,0.19979561]
[1757311664403,0.65207401,870.06,868.0,0.19979561]
[1757311664597,1.01407653,870.15,868.0,0.19979561]
[1757311664598,0.65207401,870.05,868.0,0.19979561]
[1757311664797,1.01407653,870.15,868.0,0.19979561]
[1757311664798,0.65207401,870.04,868.0,0.19979561]
[1757311664997,0.65207401,870.03,868.0,0.19979561]
[1757311665197,0.65207401,870.02,868.0,0.19979561]
[1757311665498,0.65207401,870.01,868.0,0.19979561]
[1757311665796,0.65207401,870.0,868.0,0.19979561]
[1757311665996,0.65207401,869.99,868.0,0.19979561]
[1757311666203,0.65207401,869.98,868.0,0.19979561]
[1757311666601,0.65207401,869.97,868.0,0.19979561]
[1757311666800,0.65207401,869.96,868.0,0.19979561]
[1757311667000,0.65207401,869.95,868.0,0.19979561]
[1757311667202,0.65207401,869.94,868.0,0.19979561]
[1757311667398,0.65207401,869.93,868.0,0.19979561]
[1757311667602,0.65207401,869.92,868.0,0.19979561]
[1757311667801,0.65207401,869.91,868.0,0.19979561]
[1757311668102,0.65207401,869.9,868.0,0.19979561]
[1757311668405,0.65207401,869.89,868.0,0.19979561]
[1757311668597,0.65207401,869.88,868.0,0.19979561]
[1757311668804,0.65207401,869.87,868.0,0.19979561]
[1757311669099,0.65207401,869.86,868.0,0.19979561]
[1757311669303,0.65207401,869.85,868.0,0.19979561]
[1757311669504,0.65207401,869.84,868.0,0.19979561]
[1757311669802,0.65207401,869.83,868.0,0.19979561]
[1757311670002,0.65207401,869.82,868.0,0.19979561]
[1757311670299,2.53744394,871.14,868.0,0.19979561]
[1757311670300,1.01407653,869.8,868.0,0.19979561]
[1757311670500,1.01407653,869.78,868.0,0.19979561]
[1757311670700,0.65207401,869.77,868.0,0.19979561]
[1757311670902,0.65207401,869.76,868.0,0.19979561]
[1757311671103,0.65207401,869.75,868.0,0.19979561]
[1757311671300,0.65207401,869.74,868.0,0.19979561]
[1757311671503,1.01407653,869.78,868.0,0.19979561]
[1757311671705,0.65507452,869.77,868.0,0.19979561]
[1757311671905,1.01407653,869.78,868.0,0.19979561]
[1757311671906,0.65507452,869.76,868.0,0.19979561]
[1757311672105,0.65507452,869.75,868.0,0.19979561]
[1757311672400,0.65507452,869.74,868.0,0.19979561]
[1757311672605,1.01407653,869.78,868.0,0.19979561]
[1757311672802,0.65501391,869.77,868.0,0.19979561]
[1757311673002,1.01407653,869.75,868.0,0.19979561]
[1757311673205,0.65501391,869.74,868.0,0.19979561]
[1757311673403,1.01407653,869.75,868.0,0.19979561]
[1757311673803,0.65495799,869.74,868.0,0.19979561]
[1757311674005,1.01407653,869.76,868.0,0.19979561]
[1757311674204,0.65494264,869.75,868.0,0.19979561]
[1757311674406,0.65494264,869.74,868.0,0.19979561]
[1757311674605,1.01407653,869.95,868.0,0.19979561]
[1757311674805,0.65489344,869.94,868.0,0.19979561]
[1757311675005,0.65489344,869.93,868.0,0.19979561]
[1757311675209,0.65489344,869.92,868.0,0.19979561]
[1757311675406,0.65489344,869.91,868.0,0.19979561]
[1757311675706,0.65489344,869.9,868.0,0.19979561]
[1757311675906,0.65489344,869.89,868.0,0.19979561]
[1757311676104,0.65489344,869.88,868.0,0.19979561]
[1757311676309,0.65489344,869.87,868.0,0.19979561]
[1757311676511,0.65489344,869.86,868.0,0.19979561]
[1757311676710,0.65489344,869.85,868.0,0.19979561]
[1757311676911,0.65489344,869.84,868.0,0.19979561]
[1757311677109,0.65489344,869.83,868.0,0.19979561]
[1757311677311,0.65489344,869.82,868.0,0.19979561]
[1757311677513,0.65489344,869.81,868.0,0.19979561]
[1757311677720,0.65489344,869.8,868.0,0.19979561]
[1757311677910,0.65489344,869.79,868.0,0.19979561]
[1757311678210,0.65489344,869.78,868.0,0.19979561]
[1757311678413,0.65489344,869.77,868.0,0.19979561]
[1757311678710,0.65489344,869.76,868.0,0.19979561]
[1757311679011,0.65489344,869.75,868.0,0.19979561]
[1757311679210,0.65489344,869.74,868.0,0.19979561]
[1757311679410,1.01407653,869.96,868.0,0.19979561]
[1757311679609,0.65470523,869.95,868.0,0.19979561]
[1757311679809,0.65470523,869.94,868.0,0.19979561]
[1757311680013,0.65470523,869.93,868.0,0.19979561]
[1757311680210,0.65470523,869.92,868.0,0.19979561]
[1757311680413,0.65470523,869.91,868.0,0.19979561]
[1757311680613,0.65470523,869.9,868.0,0.19979561]
[1757311680911,1.01407653,869.8,868.0,0.19979561]
[1757311681116,0.65470523,869.79,868.0,0.19979561]
[1757311681413,0.65470523,869.78,868.0,0.19979561]
[1757311681616,1.01407653,869.98,868.0,0.19979561]
[1757311681815,0.6547731,869.97,868.0,0.19979561]
[1757311682012,0.6547731,869.96,868.0,0.19979561]
[1757311682211,0.6547731,869.95,868.0,0.19979561]
[1757311682417,0.6547731,869.94,868.0,0.19979561]
[1757311682613,0.6547731,869.93,868.0,0.19979561]
[1757311682823,0.6547731,869.92,868.0,0.19979561]
[1757311683023,0.6547731,869.91,868.0,0.19979561]
[1757311683219,0.6547731,869.9,868.0,0.19979561]
[1757311683424,0.6547731,869.89,868.0,0.19979561]
[1757311683727,0.6547731,869.88,868.0,0.19979561]
[1757311683920,0.6547731,869.87,868.0,0.19979561]
[1757311684121,0.6547731,869.86,868.0,0.19979561]
[1757311684426,1.01407653,870.01,868.0,0.19979561]
[1757311684623,0.65481884,870.0,868.0,0.19979561]
[1757311684824,0.65481884,869.99,868.0,0.19979561]
[1757311685124,0.65481884,869.98,868.0,0.19979561]
[1757311685320,0.65481884,869.97,868.0,0.19979561]
[1757311685520,0.65481884,869.96,868.0,0.19979561]
[1757311685721,0.65481884,869.95,868.0,0.19979561]
[1757311685920,0.65481884,869.94,868.0,0.19979561]
[1757311686221,0.65481884,869.93,868.0,0.19979561]
[1757311686420,0.65481884,869.92,868.0,0.19979561]
[1757311686620,0.65481884,869.91,868.0,0.19979561]
[1757311686821,0.65481884,869.9,868.0,0.19979561]
[1757311687022,0.65481884,869.89,868.0,0.19979561]
[1757311687220,0.65481884,869.88,868.0,0.19979561]
[1757311687420,0.65481884,869.87,868.0,0.19979561]
[1757311687724,0.65481884,869.86,868.0,0.19979561]
[1757311687924,1.01407653,870.0,868.0,0.19979561]
[1757311688124,0.65486864,869.99,868.0,0.19979561]
[1757311688424,0.65486864,869.98,868.0,0.19979561]
[1757311688626,0.65486864,869.97,868.0,0.19979561]
[1757311688825,0.65486864,869.96,868.0,0.19979561]
[1757311689123,0.65486864,869.95,868.0,0.19979561]
[1757311689325,0.65486864,869.94,868.0,0.19979561]
[1757311689526,0.65486864,869.93,868.0,0.19979561]
[1757311689723,0.65486864,869.92,868.0,0.19979561]
[1757311689928,1.01407653,870.13,868.0,0.19979561]
[1757311690128,0.65493498,870.12,868.0,0.19979561]
[1757311690327,0.65493498,870.11,868.0,0.19979561]
[1757311690625,0.65493498,870.1,868.0,0.19979561]
[1757311690923,0.65493498,870.09,868.0,0.19979561]
[1757311691128,0.65493498,870.08,868.0,0.19979561]
[1757311691331,0.65493498,870.07,868.0,0.19979561]
[1757311691529,0.65493498,870.06,868.0,0.19979561]
[1757311691729,0.65493498,870.05,868.0,0.19979561]
[1757311692032,0.65493498,870.04,868.0,0.19979561]
[1757311692232,0.65493498,870.03,868.0,0.19979561]
[1757311692427,0.65493498,870.02,868.0,0.19979561]
[1757311692728,0.65493498,870.01,868.0,0.19979561]
[1757311692928,0.65493498,870.0,868.0,0.19979561]
[1757311693129,0.65493498,869.99,868.0,0.19979561]
[1757311693428,0.65493498,869.98,868.0,0.19979561]
[1757311693633,1.01407653,870.16,868.0,0.19979561]